[Event "23rd Alekhine FIDE 2019"]
[Site "Voronezh"]
[Date "2019.06.18"]
[Round "7.12"]
[White "Denishev, Marat"]
[Black "Chernov, Vladimir S"]
[Result "1/2-1/2"]
[ECO "A06"]
[WhiteElo "2196"]
[BlackElo "1999"]
[Annotator "NA"]
[PlyCount "118"]
[EventDate "2019.06.12"]
[EventType "swiss"]
[EventCountry "RUS"]
[SourceTitle "playchess.com"]
[Source "ChessBase"]
[SourceQuality "1"]
[TimeControl "40/5400+30:1800+30"]

1. Nf3 {[%emt 0:00:00]} d5 {[%emt 0:00:00]} 2. e3 {[%emt 0:00:11]} Nf6 {[%emt 0:00:07]} 3. c4 {[%emt 0:00:09]} c6 {[%emt 0:00:29]} 4. d4 {[%emt 0:00:57]} Bg4 {[%emt 0:01:20]} 5. Nbd2 {[%emt 0:03:37]} Nbd7 {[%emt 0:01:36]} 6. b3 {[%emt 0:01:32]} e5 {[%emt 0:04:44]} 7. dxe5 {[%emt 0:03:49]} Nxe5 {[%emt 0:00:22]} 8. Qc2 {[%emt 0:11:05]} Nxf3+ {[%emt 0:04:58]} 9. gxf3 {[%emt 0:00:46]} Bh5 {[%emt 0:00:35]} 10. Bb2 {[%emt 0:02:49]} Bb4 {[%emt 0:01:08]} 11. Bc3 {[%emt 0:03:03]} Qa5 {[%emt 0:02:03]} 12. Bxb4 {[%emt 0:02:03]} Qxb4 {[%emt 0:00:02]} 13. a3 {[%emt 0:01:29]} Qe7 {[%emt 0:01:51]} 14. cxd5 {[%emt 0:03:12]} Nxd5 {[%emt 0:00:28]} 15. Qe4 {[%emt 0:01:08]} Rd8 {[%emt 0:04:28]} 16. Qxe7+ {[%emt 0:00:57]} Kxe7 {[%emt 0:00:08]} 17. Rg1 {[%emt 0:01:30]} Bg6 {[%emt 0:00:39]} 18. Rc1 {[%emt 0:01:48]} Nb6 {[%emt 0:06:48]} 19. Ne4 {[%emt 0:05:45]} Bxe4 {[%emt 0:00:47]} 20. fxe4 {[%emt 0:00:01]} g6 {[%emt 0:00:25]} 21. a4 {[%emt 0:01:30]} Nd7 {[%emt 0:01:01]} 22. Rc3 {[%emt 0:01:56]} Nf6 {[%emt 0:01:53]} 23. f3 {[%emt 0:00:41]} Rd7 {[%emt 0:03:50]} 24. Bh3 {[%emt 0:00:51]} Rc7 {[%emt 0:00:12]} 25. Ke2 {[%emt 0:02:55]} Rd8 {[%emt 0:00:24]} 26. b4 {[%emt 0:01:08]} Nd7 {[%emt 0:02:48]} 27. Rgc1 {[%emt 0:01:14]} Nb6 {[%emt 0:05:41]} 28. a5 {[%emt 0:02:46]} Nd7 {[%emt 0:00:12]} 29. a6 {[%emt 0:05:20]} Nb8 {[%emt 0:01:16]} 30. b5 {[%emt 0:02:28]} bxa6 {[%emt 0:01:25]} 31. bxc6 {[%emt 0:00:02]} Rd6 {[%emt 0:00:48]} 32. Rb1 {[%emt 0:04:14]} Rdxc6 {[%emt 0:00:47]} 33. Rxc6 {[%emt 0:00:37]} Nxc6 {[%emt 0:00:02]} 34. f4 {[%emt 0:00:10]} Nd8 {[%emt 0:02:16]} 35. Rb2 {[%emt 0:00:23]} Nb7 {[%emt 0:02:40]} 36. e5 {[%emt 0:00:33]} a5 {[%emt 0:03:44]} 37. Bg2 {[%emt 0:00:44]} Nc5 {[%emt 0:00:21]} 38. Bd5 {[%emt 0:00:02]} a4 {[%emt 0:02:13]} 39. e4 {[%emt 0:00:17]} Ne6 {[%emt 0:02:22]} 40. Ke3 {[%emt 0:02:22]} Rc3+ {[%emt 0:09:35]} 41. Kd2 {[%emt 0:30:05]} a3 {[%emt 0:31:13]} 42. Rb4 {[%emt 0:02:04]} Rc7 {[%emt 0:10:41]} 43. Ke3 {[%emt 0:00:20]} Rc3+ {[%emt 0:00:19]} 44. Kd2 {[%emt 0:00:13]} Rc7 {[%emt 0:00:05]} 45. Ke3 {[%emt 0:01:48]} Nc5 {[%emt 0:01:55]} 46. Rb5 {[%emt 0:01:22]} Na4 {[%emt 0:07:23]} 47. Ra5 {[%emt 0:00:31]} Nc3 {[%emt 0:03:17]} 48. Rxa3 {[%emt 0:00:21]} Nxd5+ {[%emt 0:00:33]} 49. exd5 {[%emt 0:00:03]} Rb7 {[%emt 0:00:40]} 50. Kd4 {[%emt 0:01:07]} Rb4+ {[%emt 0:01:17]} 51. Kc5 {[%emt 0:00:02]} Rxf4 {[%emt 0:00:48]} 52. Rxa7+ {[%emt 0:00:05]} Kf8 {[%emt 0:00:06]} 53. Kd6 {[%emt 0:04:11]} Re4 {[%emt 0:01:40]} 54. e6 {[%emt 0:03:03]} fxe6 {[%emt 0:00:19]} 55. dxe6 {[%emt 0:00:01]} Rd4+ {[%emt 0:00:15]} 56. Ke5 {[%emt 0:00:08]} Rh4 {[%emt 0:00:38]} 57. Rf7+ {[%emt 0:00:56]} Ke8 {[%emt 0:00:24]} 58. Rf2 {[%emt 0:04:43]} Ke7 {[%emt 0:00:09]} 59. Rf7+ {[%emt 0:00:13]} Ke8 {[%emt 0:00:06]} 1/2-1/2

[Event "23rd Alekhine FIDE 2019"]
[Site "Voronezh"]
[Date "2019.06.18"]
[Round "7.13"]
[White "Zhileykin, Andrey"]
[Black "Khripachenko, Alexander"]
[Result "1/2-1/2"]
[ECO "B50"]
[WhiteElo "2193"]
[BlackElo "1838"]
[Annotator "NA"]
[PlyCount "165"]
[EventDate "2019.06.12"]
[EventType "swiss"]
[EventCountry "RUS"]
[SourceTitle "playchess.com"]
[Source "ChessBase"]
[SourceQuality "1"]
[TimeControl "40/5400+30:1800+30"]

1. e4 {[%emt 0:00:00]} c5 {[%emt 0:00:00]} 2. Nf3 {[%emt 0:00:00]} d6 {[%emt 0:00:16]} 3. Nc3 {[%emt 0:00:07]} Nf6 {[%emt 0:00:30]} 4. e5 {[%emt 0:00:30]} dxe5 {[%emt 0:00:30]} 5. Nxe5 {[%emt 0:00:30]} Nbd7 {[%emt 0:01:28]} 6. d4 {[%emt 0:00:08]} e6 {[%emt 0:07:55]} 7. Be3 {[%emt 0:02:23]} Nxe5 {[%emt 0:12:45]} 8. dxe5 {[%emt 0:00:05]} Nd5 {[%emt 0:00:05]} 9. Nxd5 {[%emt 0:06:48]} exd5 {[%emt 0:00:28]} 10. c4 {[%emt 0:00:42]} d4 {[%emt 0:00:48]} 11. Bf4 {[%emt 0:00:49]} Qb6 {[%emt 0:04:41]} 12. Qd2 {[%emt 0:01:31]} Be7 {[%emt 0:01:08]} 13. Bd3 {[%emt 0:00:09]} Be6 {[%emt 0:00:23]} 14. O-O {[%emt 0:00:53]} O-O-O {[%emt 0:02:32]} 15. Rfb1 {[%emt 0:00:19]} Rdg8 {[%emt 0:01:30]} 16. Qe1 {[%emt 0:00:25]} f6 {[%emt 0:14:51]} 17. b4 {[%emt 0:06:10]} cxb4 {[%emt 0:00:55]} 18. a3 {[%emt 0:01:32]} fxe5 {[%emt 0:03:32]} 19. Bxe5 {[%emt 0:05:18]} a5 {[%emt 0:01:45]} 20. Bxd4 {[%emt 0:05:10]} Qxd4 {[%emt 0:00:23]} 21. Qxe6+ {[%emt 0:00:05]} Qd7 {[%emt 0:00:07]} 22. Bf5 {[%emt 0:00:07]} Qxe6 {[%emt 0:00:26]} 23. Bxe6+ {[%emt 0:00:05]} Kc7 {[%emt 0:00:06]} 24. Bxg8 {[%emt 0:01:37]} Rxg8 {[%emt 0:00:02]} 25. Re1 {[%emt 0:08:00]} Bf6 {[%emt 0:00:20]} 26. axb4 {[%emt 0:21:09]} Bxa1 {[%emt 0:00:18]} 27. Rxa1 {[%emt 0:00:02]} axb4 {[%emt 0:00:11]} 28. Ra4 {[%emt 0:00:07]} Rd8 {[%emt 0:01:05]} 29. Kf1 {[%emt 0:00:41]} b3 {[%emt 0:01:27]} 30. Rb4 {[%emt 0:00:23]} Rd4 {[%emt 0:00:37]} 31. Ke2 {[%emt 0:00:14]} b2 {[%emt 0:00:10]} 32. Ke3 {[%emt 0:00:14]} b1=Q {[%emt 0:00:26]} 33. Rxb1 {[%emt 0:00:37]} Rxc4 {[%emt 0:00:02]} 34. Kd3 {[%emt 0:00:13]} Rf4 {[%emt 0:00:13]} 35. Re1 {[%emt 0:02:44]} Rxf2 {[%emt 0:02:15]} 36. Re7+ {[%emt 0:00:06]} Kc6 {[%emt 0:00:03]} 37. Rxg7 {[%emt 0:00:03]} h5 {[%emt 0:00:04]} 38. h4 {[%emt 0:04:25]} b5 {[%emt 0:03:38]} 39. g3 {[%emt 0:05:06]} b4 {[%emt 0:00:45]} 40. Kc4 {[%emt 0:00:45]} Kd6 {[%emt 0:02:01]} 41. Rg5 {[%emt 0:32:35]} Rf3 {[%emt 0:31:33]} 42. Kxb4 {[%emt 0:00:18]} Ke6 {[%emt 0:00:05]} 43. Kc4 {[%emt 0:00:05]} Rf5 {[%emt 0:00:28]} 44. Rg8 {[%emt 0:02:40]} Kf7 {[%emt 0:01:53]} 45. Rd8 {[%emt 0:00:05]} Rf1 {[%emt 0:00:20]} 46. Rd5 {[%emt 0:00:58]} Kg6 {[%emt 0:00:17]} 47. Rg5+ {[%emt 0:00:04]} Kh6 {[%emt 0:00:04]} 48. Kd4 {[%emt 0:00:09]} Rf3 {[%emt 0:00:20]} 49. Ke4 {[%emt 0:01:19]} Rf1 {[%emt 0:00:08]} 50. Ra5 {[%emt 0:01:13]} Kg6 {[%emt 0:00:41]} 51. Ra6+ {[%emt 0:00:14]} Kg7 {[%emt 0:00:13]} 52. Rb6 {[%emt 0:01:07]} Rf2 {[%emt 0:00:50]} 53. Rb5 {[%emt 0:00:41]} Kg6 {[%emt 0:00:12]} 54. Rg5+ {[%emt 0:01:11]} Kh6 {[%emt 0:00:02]} 55. Rf5 {[%emt 0:00:07]} Ra2 {[%emt 0:00:55]} 56. Rf6+ {[%emt 0:00:20]} Kg7 {[%emt 0:00:09]} 57. Rd6 {[%emt 0:00:11]} Rf2 {[%emt 0:00:26]} 58. Rd3 {[%emt 0:00:50]} Kg6 {[%emt 0:01:05]} 59. Re3 {[%emt 0:00:31]} Kf6 {[%emt 0:01:07]} 60. Rd3 {[%emt 0:01:29]} Kg6 {[%emt 0:01:33]} 61. Rd6+ {[%emt 0:01:05]} Kg7 {[%emt 0:00:41]} 62. Rd5 {[%emt 0:00:11]} Kg6 {[%emt 0:00:09]} 63. Ke3 {[%emt 0:00:03]} Rf1 {[%emt 0:00:51]} 64. Rd8 {[%emt 0:00:59]} Kg7 {[%emt 0:01:13]} 65. Ke2 {[%emt 0:00:05]} Rf6 {[%emt 0:00:23]} 66. Re8 {[%emt 0:00:07]} Kh7 {[%emt 0:00:25]} 67. Ke3 {[%emt 0:00:17]} Rf1 {[%emt 0:00:34]} 68. Rc8 {[%emt 0:00:23]} Kg7 {[%emt 0:00:21]} 69. Ke4 {[%emt 0:00:10]} Rf2 {[%emt 0:00:29]} 70. Rc1 {[%emt 0:01:08]} Kg6 {[%emt 0:00:19]} 71. Re1 {[%emt 0:00:24]} Rf8 {[%emt 0:00:25]} 72. Rb1 {[%emt 0:00:37]} Rf2 {[%emt 0:00:41]} 73. Rb3 {[%emt 0:00:06]} Rf1 {[%emt 0:00:24]} 74. Rb6+ {[%emt 0:00:29]} Kg7 {[%emt 0:00:12]} 75. Rb5 {[%emt 0:00:04]} Kg6 {[%emt 0:00:06]} 76. Rg5+ {[%emt 0:00:03]} Kh6 {[%emt 0:00:07]} 77. Rf5 {[%emt 0:00:02]} Re1+ {[%emt 0:00:14]} 78. Kf4 {[%emt 0:00:20]} Rf1+ {[%emt 0:01:54]} 79. Ke5 {[%emt 0:00:06]} Re1+ {[%emt 0:00:57]} 80. Kf6 {[%emt 0:00:04]} Ra1 {[%emt 0:00:15]} 81. Re5 {[%emt 0:00:57]} Rf1+ {[%emt 0:00:40]} 82. Rf5 {[%emt 0:00:21]} Ra1 {[%emt 0:00:08]} 83. Rf3 {[%emt 0:09:55]} 1/2-1/2

[Event "23rd Alekhine FIDE 2019"]
[Site "Voronezh"]
[Date "2019.06.18"]
[Round "7.14"]
[White "Neklyudov, Taras"]
[Black "Shaydullina, Sandugach"]
[Result "1/2-1/2"]
[ECO "B34"]
[WhiteElo "1921"]
[BlackElo "2128"]
[Annotator "ChessBase"]
[PlyCount "44"]
[EventDate "2019.06.12"]
[EventType "swiss"]
[EventCountry "RUS"]
[SourceTitle "playchess.com"]
[Source "ChessBase"]
[SourceQuality "1"]
[TimeControl "40/5400+30:1800+30"]

1. e4 c5 2. Nf3 Nc6 3. d4 cxd4 4. Nxd4 Nf6 5. Nc3 e5 6. Ndb5 d6 7. Nd5 Nxd5 8. exd5 Ne7 9. c4 Ng6 10. Qa4 Bd7 11. h4 h5 12. Qb4 Bf5 13. Qa4 Bd7 14. Qb4 Bf5 15. Qa4 Bd7 16. Qb4 Bf5 {[%emt 0:07:01]} 17. Qa4 {[%emt 0:11:05]} Bd7 {[%emt 0:00:08]} 18. Qb4 {[%emt 0:00:54]} Bf5 {[%emt 0:00:07]} 19. Qa4 {[%emt 0:01:37]} Bd7 {[%emt 0:00:21]} 20. Qb4 {[%emt 0:07:44]} Bf5 {[%emt 0:00:07]} 21. Qa4 {[%emt 0:01:46]} Bd7 {[%emt 0:00:14]} 22. Qb4 {[%emt 0:00:45]} Bf5 {[%emt 0:00:20]} 1/2-1/2

[Event "23rd Alekhine FIDE 2019"]
[Site "Voronezh"]
[Date "2019.06.19"]
[Round "8.1"]
[White "Vasiljev, Ilya"]
[Black "Ashutosh, Kumar"]
[Result "1/2-1/2"]
[ECO "B34"]
[WhiteElo "1762"]
[BlackElo "1852"]
[Annotator "NA"]
[PlyCount "80"]
[EventDate "2019.06.12"]
[EventType "swiss"]
[EventCountry "RUS"]
[SourceTitle "playchess.com"]
[Source "ChessBase"]
[SourceQuality "1"]
[TimeControl "40/5400+30:1800+30"]

1. e4 {[%emt 0:00:00]} c5 {[%emt 0:03:02]} 2. Nf3 {[%emt 0:00:00]} Nc6 {[%emt 0:00:33]} 3. d4 {[%emt 0:00:00]} cxd4 {[%emt 0:00:12]} 4. Nxd4 {[%emt 0:00:00]} g6 {[%emt 0:00:52]} 5. Nc3 {[%emt 0:00:00]} Bg7 {[%emt 0:00:26]} 6. Be3 {[%emt 0:00:00]} Nf6 {[%emt 0:00:46]} 7. Nxc6 {[%emt 0:00:03]} bxc6 {[%emt 0:02:27]} 8. e5 {[%emt 0:00:40]} Ng8 {[%emt 0:00:29]} 9. Bd4 {[%emt 0:00:38]} Nh6 {[%emt 0:01:28]} 10. e6 {[%emt 0:06:24]} f6 {[%emt 0:00:33]} 11. exd7+ {[%emt 0:00:25]} Bxd7 {[%emt 0:01:42]} 12. Bc4 {[%emt 0:02:03]} Nf7 {[%emt 0:00:56]} 13. O-O {[%emt 0:00:59]} O-O {[%emt 0:00:26]} 14. Re1 {[%emt 0:03:38]} Re8 {[%emt 0:01:37]} 15. Ne4 {[%emt 0:04:16]} Bf5 {[%emt 0:03:21]} 16. Ng3 {[%emt 0:10:01]} Bc8 {[%emt 0:05:30]} 17. Qd3 {[%emt 0:03:06]} Qc7 {[%emt 0:05:26]} 18. Qb3 {[%emt 0:03:37]} e5 {[%emt 0:00:25]} 19. Bc5 {[%emt 0:00:35]} Bf8 {[%emt 0:03:20]} 20. Ne4 {[%emt 0:03:20]} Kg7 {[%emt 0:00:49]} 21. Bxf8+ {[%emt 0:07:01]} Rxf8 {[%emt 0:00:18]} 22. Rad1 {[%emt 0:03:41]} Bg4 {[%emt 0:02:04]} 23. f3 {[%emt 0:03:11]} Rab8 {[%emt 0:02:24]} 24. Qe3 {[%emt 0:03:54]} Bc8 {[%emt 0:08:26]} 25. Bb3 {[%emt 0:02:10]} Nh6 {[%emt 0:05:19]} 26. c3 {[%emt 0:04:30]} Bf5 {[%emt 0:02:31]} 27. Nc5 {[%emt 0:02:15]} Rbd8 {[%emt 0:02:00]} 28. Ba4 {[%emt 0:07:35]} Bc8 {[%emt 0:04:45]} 29. b4 {[%emt 0:01:26]} Nf5 {[%emt 0:00:44]} 30. Qe2 {[%emt 0:00:27]} Ne7 {[%emt 0:02:59]} 31. Bb3 {[%emt 0:04:26]} Nd5 {[%emt 0:03:04]} 32. Bxd5 {[%emt 0:00:10]} Rxd5 {[%emt 0:02:05]} 33. Rxd5 {[%emt 0:00:55]} cxd5 {[%emt 0:00:06]} 34. Qf2 {[%emt 0:00:05]} Rd8 {[%emt 0:01:54]} 35. Rd1 {[%emt 0:00:31]} Qb6 {[%emt 0:03:38]} 36. Nb3 {[%emt 0:05:20]} Bf5 {[%emt 0:04:30]} 37. Qc5 {[%emt 0:02:38]} Bc2 {[%emt 0:01:40]} 38. Rd2 {[%emt 0:01:20]} Bxb3 {[%emt 0:01:26]} 39. axb3 {[%emt 0:00:20]} Kf7 {[%emt 0:07:37]} 40. Ra2 {[%emt 0:01:09]} Rd7 {[%emt 0:01:42]} 1/2-1/2

[Event "23rd Alekhine FIDE 2019"]
[Site "Voronezh"]
[Date "2019.06.19"]
[Round "8.2"]
[White "Beldyugin, Alexey"]
[Black "Artemov, Nikita"]
[Result "1-0"]
[ECO "A15"]
[WhiteElo "2126"]
[BlackElo "2028"]
[Annotator "NA"]
[PlyCount "103"]
[EventDate "2019.06.12"]
[EventType "swiss"]
[EventCountry "RUS"]
[SourceTitle "playchess.com"]
[Source "ChessBase"]
[SourceQuality "1"]
[TimeControl "40/5400+30:1800+30"]

1. c4 {[%emt 0:00:00]} Nf6 {[%emt 0:03:24]} 2. g3 {[%emt 0:00:00]} g6 {[%emt 0:00:11]} 3. Bg2 {[%emt 0:00:00]} Bg7 {[%emt 0:00:09]} 4. Nc3 {[%emt 0:00:28]} O-O {[%emt 0:02:54]} 5. d4 {[%emt 0:00:31]} c5 {[%emt 0:04:10]} 6. d5 {[%emt 0:01:49]} d6 {[%emt 0:00:47]} 7. e4 {[%emt 0:02:02]} e6 {[%emt 0:03:48]} 8. Nge2 {[%emt 0:00:25]} exd5 {[%emt 0:01:06]} 9. cxd5 {[%emt 0:03:49]} Re8 {[%emt 0:06:11]} 10. O-O {[%emt 0:04:39]} b5 {[%emt 0:02:32]} 11. e5 {[%emt 0:01:54]} Rxe5 {[%emt 0:06:10]} 12. Bf4 {[%emt 0:00:34]} Re8 {[%emt 0:00:45]} 13. Nxb5 {[%emt 0:00:21]} Ba6 {[%emt 0:00:07]} 14. a4 {[%emt 0:06:57]} Nh5 {[%emt 0:06:15]} 15. Bc1 {[%emt 0:01:50]} Bxb5 {[%emt 0:06:54]} 16. axb5 {[%emt 0:00:02]} Nd7 {[%emt 0:00:06]} 17. Nc3 {[%emt 0:01:09]} f5 {[%emt 0:05:08]} 18. Bf3 {[%emt 0:10:28]} Nhf6 {[%emt 0:01:22]} 19. Re1 {[%emt 0:06:07]} Ne5 {[%emt 0:03:35]} 20. Bg2 {[%emt 0:00:42]} c4 {[%emt 0:05:38]} 21. Be3 {[%emt 0:08:12]} Nd3 {[%emt 0:04:30]} 22. Re2 {[%emt 0:01:49]} Ng4 {[%emt 0:02:22]} 23. Bxa7 {[%emt 0:29:15]} Rxa7 {[%emt 0:09:00]} 24. Rxa7 {[%emt 0:03:55]} Bd4 {[%emt 0:00:06]} 25. Rxe8+ {[%emt 0:01:36]} Qxe8 {[%emt 0:00:06]} 26. Qe2 {[%emt 0:00:12]} Bxf2+ {[%emt 0:13:43]} 27. Kh1 {[%emt 0:00:26]} Be3 {[%emt 0:01:36]} 28. Bf3 {[%emt 0:01:38]} Qe5 {[%emt 0:02:30]} 29. Ra8+ {[%emt 0:01:10]} Kg7 {[%emt 0:00:07]} 30. Bxg4 {[%emt 0:03:14]} fxg4 {[%emt 0:02:03]} 31. b6 {[%emt 0:00:14]} Bxb6 {[%emt 0:02:39]} 32. Qxe5+ {[%emt 0:00:18]} Nxe5 {[%emt 0:00:07]} 33. Ra6 {[%emt 0:01:00]} Bd4 {[%emt 0:03:11]} 34. Rxd6 {[%emt 0:01:06]} Nd3 {[%emt 0:01:04]} 35. Rd7+ {[%emt 0:05:42]} Kf6 {[%emt 0:00:47]} 36. Rxh7 {[%emt 0:00:23]} Nxb2 {[%emt 0:00:33]} 37. Nb5 {[%emt 0:01:18]} Bb6 {[%emt 0:01:35]} 38. Rb7 {[%emt 0:00:58]} Ba5 {[%emt 0:00:12]} 39. Nd4 {[%emt 0:01:44]} c3 {[%emt 0:00:25]} 40. d6 {[%emt 0:00:33]} Nd3 {[%emt 0:00:50]} 41. d7 {[%emt 0:30:39]} Ne5 {[%emt 0:30:38]} 42. Ra7 {[%emt 0:00:43]} Bb6 {[%emt 0:00:39]} 43. Rb7 {[%emt 0:00:24]} Ba5 {[%emt 0:00:33]} 44. Kg2 {[%emt 0:00:42]} Ke7 {[%emt 0:00:31]} 45. Rb5 {[%emt 0:00:14]} Bc7 {[%emt 0:00:25]} 46. Rxe5+ {[%emt 0:01:06]} Bxe5 {[%emt 0:00:06]} 47. Nc6+ {[%emt 0:00:19]} Kxd7 {[%emt 0:00:05]} 48. Nxe5+ {[%emt 0:00:04]} Ke6 {[%emt 0:00:05]} 49. Nd3 {[%emt 0:00:03]} Kd5 {[%emt 0:00:07]} 50. Kf2 {[%emt 0:00:36]} Kd4 {[%emt 0:00:20]} 51. Ke2 {[%emt 0:00:26]} Ke4 {[%emt 0:00:14]} 52. Nf2+ {[%emt 0:00:14]} 1-0

[Event "23rd Alekhine FIDE 2019"]
[Site "Voronezh"]
[Date "2019.06.19"]
[Round "8.3"]
[White "Eliseev, Mikhail"]
[Black "Stepochkin, Fedor"]
[Result "1-0"]
[ECO "C17"]
[WhiteElo "2169"]
[BlackElo "1929"]
[Annotator "NA"]
[PlyCount "59"]
[EventDate "2019.06.12"]
[EventType "swiss"]
[EventCountry "RUS"]
[SourceTitle "playchess.com"]
[Source "ChessBase"]
[SourceQuality "1"]
[TimeControl "40/5400+30:1800+30"]

1. e4 {[%emt 0:00:00]} e6 {[%emt 0:00:00]} 2. d4 {[%emt 0:00:11]} d5 {[%emt 0:00:00]} 3. Nc3 {[%emt 0:00:07]} Bb4 {[%emt 0:00:00]} 4. e5 {[%emt 0:00:05]} c5 {[%emt 0:00:00]} 5. Bd2 {[%emt 0:00:05]} Ne7 {[%emt 0:00:03]} 6. Nb5 {[%emt 0:00:05]} Bxd2+ {[%emt 0:00:05]} 7. Qxd2 {[%emt 0:00:03]} O-O {[%emt 0:00:08]} 8. f4 {[%emt 0:00:09]} Bd7 {[%emt 0:01:22]} 9. dxc5 {[%emt 0:00:38]} Bxb5 {[%emt 0:01:05]} 10. Bxb5 {[%emt 0:00:16]} a6 {[%emt 0:00:14]} 11. Bd3 {[%emt 0:00:58]} Nd7 {[%emt 0:00:36]} 12. Nf3 {[%emt 0:07:50]} Nxc5 {[%emt 0:01:15]} 13. O-O-O {[%emt 0:00:09]} f6 {[%emt 0:44:47]} 14. exf6 {[%emt 0:05:51]} Rxf6 {[%emt 0:00:11]} 15. Kb1 {[%emt 0:03:08]} Qc7 {[%emt 0:07:08]} 16. g3 {[%emt 0:01:08]} h6 {[%emt 0:07:10]} 17. Rhe1 {[%emt 0:04:40]} Rc8 {[%emt 0:02:19]} 18. Ne5 {[%emt 0:02:47]} Nf5 {[%emt 0:08:13]} 19. g4 {[%emt 0:08:35]} Nd6 {[%emt 0:02:32]} 20. g5 {[%emt 0:02:06]} hxg5 {[%emt 0:00:34]} 21. fxg5 {[%emt 0:00:05]} Nxd3 {[%emt 0:05:00]} 22. cxd3 {[%emt 0:03:37]} Rf5 {[%emt 0:01:24]} 23. g6 {[%emt 0:18:54]} Nb5 {[%emt 0:03:44]} 24. Rc1 {[%emt 0:07:42]} Qb8 {[%emt 0:03:53]} 25. Rxc8+ {[%emt 0:02:22]} Qxc8 {[%emt 0:00:08]} 26. Qe3 {[%emt 0:01:49]} Rh5 {[%emt 0:07:42]} 27. Qf3 {[%emt 0:06:15]} Rxh2 {[%emt 0:01:44]} 28. Rc1 {[%emt 0:00:26]} Qd8 {[%emt 0:01:54]} 29. Qf7+ {[%emt 0:00:07]} Kh8 {[%emt 0:00:03]} 30. Qxe6 {[%emt 0:00:20]} 1-0

[Event "23rd Alekhine FIDE 2019"]
[Site "Voronezh"]
[Date "2019.06.19"]
[Round "8.4"]
[White "Peschansky, Mikhail"]
[Black "Gorshkov, Yury S."]
[Result "0-1"]
[ECO "A10"]
[WhiteElo "2075"]
[BlackElo "2103"]
[Annotator "NA"]
[PlyCount "72"]
[EventDate "2019.06.12"]
[EventType "swiss"]
[EventCountry "RUS"]
[SourceTitle "playchess.com"]
[Source "ChessBase"]
[SourceQuality "1"]
[TimeControl "40/5400+30:1800+30"]

1. c4 {[%emt 0:00:00]} g6 {[%emt 0:00:00]} 2. Nf3 {[%emt 0:00:30]} Bg7 {[%emt 0:00:30]} 3. g3 {[%emt 0:00:30]} c5 {[%emt 0:00:30]} 4. Bg2 {[%emt 0:00:30]} Nc6 {[%emt 0:00:30]} 5. O-O {[%emt 0:00:30]} e5 {[%emt 0:00:30]} 6. Nc3 {[%emt 0:00:30]} Nge7 {[%emt 0:00:28]} 7. Ne1 {[%emt 0:00:57]} a6 {[%emt 0:18:31]} 8. d3 {[%emt 0:04:44]} Rb8 {[%emt 0:02:47]} 9. Bg5 {[%emt 0:12:36]} f6 {[%emt 0:06:37]} 10. Bd2 {[%emt 0:01:55]} b5 {[%emt 0:01:21]} 11. Nc2 {[%emt 0:04:40]} O-O {[%emt 0:07:15]} 12. cxb5 {[%emt 0:14:39]} axb5 {[%emt 0:00:11]} 13. b4 {[%emt 0:00:12]} d6 {[%emt 0:21:13]} 14. Rb1 {[%emt 0:04:28]} Be6 {[%emt 0:00:33]} 15. bxc5 {[%emt 0:01:09]} dxc5 {[%emt 0:00:12]} 16. Rxb5 {[%emt 0:00:49]} Rxb5 {[%emt 0:00:20]} 17. Nxb5 {[%emt 0:00:04]} Bxa2 {[%emt 0:00:24]} 18. Ne3 {[%emt 0:03:11]} Nd4 {[%emt 0:03:08]} 19. Nc3 {[%emt 0:02:22]} Bb3 {[%emt 0:01:18]} 20. Qc1 {[%emt 0:00:35]} f5 {[%emt 0:01:19]} 21. Ned1 {[%emt 0:08:39]} Be6 {[%emt 0:09:37]} 22. Qa3 {[%emt 0:00:50]} h6 {[%emt 0:03:35]} 23. Be3 {[%emt 0:08:51]} c4 {[%emt 0:03:47]} 24. Qa6 {[%emt 0:00:24]} Qc8 {[%emt 0:03:09]} 25. Bb7 {[%emt 0:01:00]} Qd7 {[%emt 0:01:24]} 26. dxc4 {[%emt 0:02:03]} Kh7 {[%emt 0:01:14]} 27. c5 {[%emt 0:01:43]} Ndc6 {[%emt 0:02:34]} 28. Nb5 {[%emt 0:06:20]} f4 {[%emt 0:06:40]} 29. Bc1 {[%emt 0:01:19]} Bh3 {[%emt 0:01:03]} 30. Re1 {[%emt 0:03:02]} Qd5 {[%emt 0:00:03]} 31. e4 {[%emt 0:01:53]} Qxc5 {[%emt 0:02:01]} 32. Ba3 {[%emt 0:00:45]} Qc2 {[%emt 0:00:04]} 33. Bxc6 {[%emt 0:00:38]} fxg3 {[%emt 0:00:18]} 34. hxg3 {[%emt 0:00:03]} Qd2 {[%emt 0:00:23]} 35. Nbc3 {[%emt 0:07:00]} Qxe1+ {[%emt 0:00:07]} 36. Kh2 {[%emt 0:00:01]} Bg4 {[%emt 0:00:38]} 0-1

[Event "23rd Alekhine FIDE 2019"]
[Site "Voronezh"]
[Date "2019.06.19"]
[Round "8.5"]
[White "Tatarintsev, Egor"]
[Black "Abramov, Ilya"]
[Result "1-0"]
[ECO "C00"]
[WhiteElo "2001"]
[BlackElo "2098"]
[Annotator "NA"]
[PlyCount "85"]
[EventDate "2019.06.12"]
[EventType "swiss"]
[EventCountry "RUS"]
[SourceTitle "playchess.com"]
[Source "ChessBase"]
[SourceQuality "1"]
[TimeControl "40/5400+30:1800+30"]

1. e4 {[%emt 0:00:00]} e6 {[%emt 0:00:00]} 2. d3 {[%emt 0:00:00]} d5 {[%emt 0:00:00]} 3. Nd2 {[%emt 0:00:00]} Nf6 {[%emt 0:00:06]} 4. Ngf3 {[%emt 0:00:00]} Nc6 {[%emt 0:03:25]} 5. Be2 {[%emt 0:00:06]} dxe4 {[%emt 0:01:07]} 6. dxe4 {[%emt 0:00:20]} Bc5 {[%emt 0:00:07]} 7. O-O {[%emt 0:00:49]} O-O {[%emt 0:03:10]} 8. c3 {[%emt 0:01:19]} a5 {[%emt 0:02:27]} 9. Qc2 e5 {[%emt 0:00:49]} 10. Nc4 {[%emt 0:05:52]} Qe7 {[%emt 0:00:06]} 11. h3 {[%emt 0:04:26]} Nh5 {[%emt 0:02:29]} 12. Kh2 {[%emt 0:06:22]} f5 {[%emt 0:15:06]} 13. Bg5 {[%emt 0:09:54]} Qe8 {[%emt 0:03:51]} 14. Rad1 {[%emt 0:17:48]} Be7 {[%emt 0:12:17]} 15. Bxe7 {[%emt 0:09:47]} Qxe7 {[%emt 0:00:05]} 16. Ne3 {[%emt 0:00:16]} Nf4 {[%emt 0:11:30]} 17. Bc4+ {[%emt 0:03:56]} Kh8 {[%emt 0:00:21]} 18. Nd5 {[%emt 0:02:36]} Nxd5 {[%emt 0:01:33]} 19. Bxd5 {[%emt 0:00:06]} f4 {[%emt 0:03:18]} 20. Bxc6 {[%emt 0:01:48]} bxc6 {[%emt 0:00:14]} 21. Qa4 {[%emt 0:02:48]} Qc5 {[%emt 0:03:22]} 22. Qa3 {[%emt 0:00:08]} Qxa3 {[%emt 0:00:17]} 23. bxa3 {[%emt 0:00:01]} Re8 {[%emt 0:02:06]} 24. Rd2 {[%emt 0:02:45]} h6 {[%emt 0:08:18]} 25. Rfd1 {[%emt 0:01:47]} Kh7 {[%emt 0:00:14]} 26. Rd8 {[%emt 0:00:47]} Bb7 {[%emt 0:00:06]} 27. R8d7 {[%emt 0:13:11]} c5 {[%emt 0:00:44]} 28. Rxc7 {[%emt 0:00:48]} Bxe4 {[%emt 0:00:08]} 29. Rdd7 {[%emt 0:00:42]} Bxf3 {[%emt 0:01:55]} 30. Rxg7+ {[%emt 0:00:08]} Kh8 {[%emt 0:00:04]} 31. gxf3 {[%emt 0:00:24]} Rab8 {[%emt 0:00:15]} 32. Rh7+ {[%emt 0:01:18]} Kg8 {[%emt 0:00:04]} 33. Rxh6 {[%emt 0:02:13]} Rb2 {[%emt 0:00:14]} 34. Rg6+ {[%emt 0:00:02]} Kh8 {[%emt 0:01:22]} 35. Rh6+ {[%emt 0:02:01]} Kg8 {[%emt 0:00:07]} 36. Kg2 {[%emt 0:00:08]} Rxa2 {[%emt 0:00:57]} 37. h4 {[%emt 0:00:28]} Rxa3 {[%emt 0:00:56]} 38. h5 {[%emt 0:00:50]} Rxc3 {[%emt 0:01:52]} 39. Rg6+ {[%emt 0:01:26]} Kh8 {[%emt 0:00:07]} 40. Rh6+ {[%emt 0:00:01]} Kg8 {[%emt 0:00:07]} 41. Rhh7 {[%emt 0:30:01]} Re6 {[%emt 0:31:33]} 42. Rhd7 {[%emt 0:00:16]} Rf6 {[%emt 0:00:16]} 43. h6 {[%emt 0:00:53]} 1-0